fUSD/lending_fUSD_20240907
["ID","MTS","AMOUNT","RATE_DAILY","PERIOD"]
[337466886,1725677479217,-500.0,0.00014984,2]
[337466887,1725677479226,-500.0,0.00014984,2]
[337466888,1725677479235,-500.0,0.00014984,2]
[337466889,1725677479244,-597.83,0.00014984,2]
[337466890,1725677479253,-151.0,0.00014984,2]
[337466891,1725677479263,-500.0,0.00014984,2]
[337466892,1725677479273,-500.0,0.00014984,2]
[337466893,1725677479282,-7172.41,0.00014984,2]
[337466894,1725677479292,-500.0,0.00014984,2]
[337466895,1725677479302,-500.0,0.00014984,2]
[337466896,1725677479312,-1137.17,0.00014984,2]
[337466897,1725677479322,-500.0,0.00014984,2]
[337466898,1725677479331,-1281.02,0.00014984,2]
[337466899,1725677479341,-500.0,0.00014984,2]
[337466900,1725677479351,-500.0,0.00014984,2]
[337466901,1725677479360,-500.0,0.00014984,2]
[337466902,1725677479370,-500.0,0.00014984,2]
[337466903,1725677479379,-1106.53,0.00014984,2]
[337466904,1725677479388,-537.83,0.00014984,2]
[337466905,1725677479398,-500.0,0.00014984,2]
[337466906,1725677479410,-500.0,0.00014984,2]
[337466907,1725677479420,-590.58202344,0.00014984,2]
[337466908,1725677479429,-500.0,0.00014984,2]
[337466909,1725677479439,-500.0,0.00014984,2]
[337466910,1725677479451,-500.0,0.00014984,2]
[337466911,1725677479460,-2437.6,0.00014984,2]
[337466912,1725677479470,-720.08,0.00014984,2]
[337466913,1725677479479,-500.0,0.00014984,2]
[337466914,1725677479489,-2595.16,0.00014984,2]
[337466915,1725677479499,-152.181482,0.00014984,2]
[337466916,1725677479508,-500.0,0.00014984,2]
[337466917,1725677479518,-500.0,0.00014984,2]
[337466918,1725677479529,-3199.88,0.00014984,2]
[337466919,1725677479539,-766.45,0.00014984,2]
[337466920,1725677479548,-500.0,0.00014984,2]
[337466921,1725677479558,-500.0,0.00014984,2]
[337466922,1725677479567,-617.69,0.00014984,2]
[337466923,1725677479578,-500.0,0.00014984,2]
[337466924,1725677479587,-500.0,0.00014984,2]
[337466925,1725677479597,-827.88,0.00014984,2]
[337466926,1725677479606,-648.49926553,0.00014984,2]
[337466927,1725677479615,-500.0,0.00014984,2]
[337466928,1725677479625,-500.0,0.00014984,2]
[337466929,1725677479634,-151.0,0.00014985,2]
[337466930,1725677479643,-359.272138,0.00014985,2]
[337466931,1725677479653,-359.272138,0.00014985,2]
[337466932,1725677479662,-151.0,0.00014985,2]
[337466933,1725677479671,-151.0,0.00014985,2]
[337466934,1725677479680,-151.0,0.00014985,2]
[337466935,1725677479689,-151.0,0.00014985,2]
[337466936,1725677479699,-1642.0042945,0.00014985,2]
[337466937,1725677479708,-2121.194222,0.00014985,2]
[337466938,1725677479718,-6089.8818773,0.00014985,2]
[337466939,1725677479727,-500.0,0.00014986,2]
[337466940,1725677479737,-493.68,0.00014986,2]
[337466941,1725677479746,-517.99,0.00014986,2]
[337466942,1725677479756,-608.98,0.00014986,2]
[337466943,1725677479765,-1030.8,0.00014986,2]
[337466944,1725677479774,-830.02,0.00014986,2]
[337466945,1725677479783,-866.39,0.00014986,2]
[337466946,1725677479793,-593.78,0.00014986,2]
[337466947,1725677479802,-2016.4,0.00014986,2]
[337466948,1725677479811,-500.0,0.00014986,2]
[337466949,1725677479820,-1573.01,0.00014986,2]
[337466950,1725677479829,-239.36,0.00014986,2]
[337466951,1725677479838,-500.0,0.00014986,2]
[337466952,1725677479847,-500.0,0.00014987,2]
[337466953,1725677479856,-397.26740519,0.00014987,2]
[337466954,1725677479865,-1051.14,0.00014987,2]
[337466955,1725677479874,-500.0,0.00014987,2]
[337466956,1725677479883,-500.0,0.00014987,2]
[337466957,1725677479893,-500.0,0.00014987,2]
[337466958,1725677479902,-500.0,0.00014987,2]
[337466959,1725677479911,-500.0,0.00014987,2]
[337466960,1725677479921,-500.0,0.00014987,2]
[337466961,1725677479930,-500.0,0.00014987,2]
[337466962,1725677479939,-493.32994694,0.00014987,2]
[337466963,1725677479948,-516.72,0.00014987,2]
[337466964,1725677479958,-500.0,0.00014987,2]
[337466965,1725677479967,-500.0,0.00014987,2]
[337466966,1725677479976,-1608.63,0.00014987,2]
[337466967,1725677479987,-1236.46,0.00014987,2]
[337466968,1725677479998,-576.99,0.00014987,2]
[337466969,1725677480007,-500.0,0.00014987,2]
[337466970,1725677480017,-897.13,0.00014987,2]
[337466971,1725677480028,-795.48,0.00014987,2]
[337466972,1725677480038,-500.0,0.00014987,2]
[337466973,1725677480049,-423.49922335,0.00014987,2]
[337466974,1725677480060,-877.77,0.00014987,2]
[337466975,1725677480070,-1462.3,0.00014987,2]
[337466976,1725677480081,-2200.19,0.00014987,2]
[337466977,1725677480091,-897.65,0.00014987,2]
[337466978,1725677480101,-670.34,0.00014987,2]
[337466979,1725677480112,-618.34,0.00014987,2]
[337466980,1725677480121,-1460.66,0.00014987,2]
[337466981,1725677480130,-642.23,0.00014987,2]
[337466982,1725677480139,-518.92,0.00014987,2]
[337466983,1725677480148,-2439.28,0.00014987,2]
[337466984,1725677480157,-670.32,0.00014987,2]
[337466985,1725677480166,-500.0,0.00014987,2]
[337466986,1725677480175,-1015.98,0.00014987,2]
[337466987,1725677480184,-500.0,0.00014987,2]
[337466988,1725677480193,-1850.04,0.00014987,2]
[337466989,1725677480203,-500.0,0.00014987,2]
[337466990,1725677480212,-1139.03,0.00014987,2]
[337466991,1725677480221,-500.0,0.00014987,2]
[337466992,1725677480231,-500.0,0.00014987,2]
[337466993,1725677480241,-844.54,0.00014987,2]
[337466994,1725677480251,-1066.99,0.00014987,2]
[337466995,1725677480263,-838.85,0.00014987,2]
[337466996,1725677480274,-973.13,0.00014987,2]
[337466997,1725677480283,-837.29,0.00014987,2]
[337466998,1725677480297,-614.38,0.00014987,2]
[337466999,1725677480307,-500.0,0.00014987,2]
[337467000,1725677480317,-522.01,0.00014987,2]
[337467001,1725677480327,-500.0,0.00014987,2]
[337467002,1725677480337,-425.32586146,0.00014987,2]
[337467003,1725677480347,-560.23182001,0.00014987,2]
[337467004,1725677480357,-500.0,0.00014987,2]
[337467005,1725677480367,-388.44025902,0.00014987,2]
[337467006,1725677480378,-855.57,0.00014987,2]
[337467007,1725677480387,-500.0,0.00014987,2]
[337467008,1725677480397,-500.0,0.00014987,2]
[337467009,1725677480408,-500.0,0.00014987,2]
[337467010,1725677480421,-500.0,0.00014987,2]
[337467011,1725677480430,-254.3,0.00014987,2]
[337467012,1725677480442,-500.0,0.00014987,2]
[337467013,1725677480455,-500.0,0.00014987,2]
[337467014,1725677480466,-464.15,0.00014987,2]
[337467015,1725677480475,-500.0,0.00014987,2]
[337467016,1725677480484,-500.0,0.00014987,2]
[337467017,1725677480495,-501.03,0.00014987,2]
[337467018,1725677480505,-752.91,0.00014987,2]
[337467019,1725677480514,-500.0,0.00014987,2]
[337467020,1725677480524,-1205.59,0.00014987,2]
[337467021,1725677480533,-500.0,0.00014987,2]
[337467022,1725677480542,-500.0,0.00014987,2]
[337467023,1725677480552,-624.56,0.00014987,2]
[337467024,1725677480562,-958.54,0.00014987,2]
[337467025,1725677480571,-680.9,0.00014987,2]
[337467026,1725677480581,-500.0,0.00014987,2]
[337467027,1725677480590,-1058.77,0.00014987,2]
[337467028,1725677480599,-500.0,0.00014987,2]
[337467029,1725677480608,-500.0,0.00014987,2]
[337467030,1725677480617,-500.0,0.00014987,2]
[337467031,1725677480626,-500.0,0.00014987,2]
[337467032,1725677480636,-500.0,0.00014987,2]
[337467033,1725677480645,-317.7,0.00014987,2]
[337467034,1725677480654,-500.0,0.00014987,2]
[337467035,1725677480663,-500.0,0.00014987,2]
[337467036,1725677480672,-500.0,0.00014987,2]
[337467037,1725677480682,-500.0,0.00014987,2]
[337467038,1725677480691,-500.0,0.00014987,2]
[337467039,1725677480700,-1133.25,0.00014987,2]
[337467040,1725677480710,-500.0,0.00014987,2]
[337467041,1725677480719,-556.45,0.00014987,2]
[337467042,1725677480728,-636.2,0.00014987,2]
[337467043,1725677480738,-889.78,0.00014987,2]
[337467044,1725677480747,-500.0,0.00014987,2]
[337467045,1725677480756,-500.0,0.00014987,2]
[337467046,1725677480765,-400.37273979,0.00014987,2]
[337467047,1725677480776,-500.0,0.00014987,2]
[337467048,1725677480786,-582.54,0.00014987,2]
[337467049,1725677480796,-500.0,0.00014987,2]
[337467050,1725677480805,-500.0,0.00014987,2]
[337467051,1725677480814,-500.0,0.00014987,2]
[337467052,1725677480823,-500.0,0.00014987,2]
[337467053,1725677480833,-876.75,0.00014987,2]
[337467054,1725677480843,-500.0,0.00014987,2]
[337467055,1725677480854,-500.0,0.00014987,2]
[337467056,1725677480863,-500.0,0.00014987,2]
[337467057,1725677480874,-500.0,0.00014987,2]
[337467058,1725677480884,-500.0,0.00014987,2]
[337467059,1725677480894,-948.01,0.00014987,2]
[337467060,1725677480904,-500.0,0.00014987,2]
[337467061,1725677480913,-585.97,0.00014987,2]
[337467062,1725677480922,-500.0,0.00014987,2]
[337467063,1725677480934,-500.0,0.00014987,2]
[337467064,1725677480944,-500.0,0.00014987,2]
[337467065,1725677480953,-687.57,0.00014987,2]
[337467066,1725677480963,-542.27,0.00014987,2]
[337467067,1725677480972,-500.0,0.00014987,2]
[337467068,1725677480982,-535.96,0.00014987,2]
[337467069,1725677480992,-500.0,0.00014987,2]
[337467070,1725677481003,-624.27,0.00014987,2]
[337467071,1725677481013,-500.0,0.00014987,2]
[337467072,1725677481174,-500.0,0.00014987,2]
[337467073,1725677481184,-705.76,0.00014987,2]
[337467074,1725677481193,-500.0,0.00014987,2]
[337467075,1725677481202,-500.0,0.00014987,2]
[337467076,1725677481212,-500.0,0.00014987,2]
[337467077,1725677481230,-500.0,0.00014987,2]
[337467078,1725677481241,-500.0,0.00014987,2]
[337467079,1725677481252,-502.70906697,0.00014987,2]
[337467080,1725677481262,-500.0,0.00014987,2]
[337467081,1725677481272,-500.0,0.00014987,2]
[337467082,1725677481282,-500.0,0.00014987,2]
[337467083,1725677481292,-500.0,0.00014987,2]
[337467084,1725677481302,-500.0,0.00014987,2]
[337467085,1725677481311,-512.13,0.00014987,2]
[337467086,1725677481322,-500.0,0.00014987,2]
[337467087,1725677481332,-500.0,0.00014987,2]
[337467088,1725677481342,-500.0,0.00014987,2]
[337467089,1725677481351,-500.0,0.00014987,2]
[337467090,1725677481361,-500.0,0.00014987,2]
[337467091,1725677481371,-500.0,0.00014987,2]
[337467092,1725677481381,-500.0,0.00014987,2]
[337467093,1725677481391,-445.60298844,0.00014987,2]
[337467094,1725677481402,-500.0,0.00014987,2]
[337467095,1725677481414,-164.48,0.00014987,2]
[337467096,1725677481424,-500.0,0.00014987,2]
[337467097,1725677481434,-500.0,0.00014987,2]
[337467098,1725677481444,-394.52,0.00014987,2]
[337467099,1725677481454,-552.09,0.00014987,2]
[337467100,1725677481464,-500.0,0.00014987,2]
[337467101,1725677481475,-512.83,0.00014987,2]
[337467102,1725677481485,-500.0,0.00014987,2]
[337467103,1725677481496,-462.23180024,0.00014987,2]
[337467104,1725677481505,-500.0,0.00014988,2]
[337467105,1725677481515,-500.0,0.00014988,2]
[337467106,1725677481524,-1051.14,0.00014988,2]
[337467107,1725677481534,-500.0,0.00014988,2]
[337467108,1725677481544,-500.0,0.00014988,2]
[337467109,1725677481554,-500.0,0.00014988,2]
[337467110,1725677481563,-541.13746275,0.00014988,2]
[337467111,1725677481573,-500.0,0.00014988,2]
[337467112,1725677481583,-500.0,0.00014988,2]
[337467113,1725677481593,-500.0,0.00014988,2]
[337467114,1725677481603,-516.72,0.00014988,2]
[337467115,1725677481613,-900.56,0.00014988,2]
[337467116,1725677481623,-1946.83,0.00014988,2]
[337467117,1725677481632,-1535.5,0.00014988,2]
[337467118,1725677481642,-500.0,0.00014988,2]
[337467119,1725677481652,-386.698434,0.00014988,2]
[337467120,1725677481661,-581.76,0.00014988,2]
[337467121,1725677481671,-386.698434,0.00014988,2]
[337467122,1725677481681,-151.0,0.00014988,2]
[337467123,1725677481691,-500.0,0.00014988,2]
[337467124,1725677481700,-500.0,0.00014988,2]
[337467125,1725677481710,-151.0,0.00014988,2]
[337467126,1725677481721,-503.24543696,0.00014988,2]
[337467127,1725677481731,-1608.63,0.00014988,2]
[337467128,1725677481741,-1971.8156937,0.00014988,2]
[337467129,1725677481751,-1236.46,0.00014988,2]
[337467130,1725677481761,-576.99,0.00014988,2]
[337467131,1725677481771,-500.0,0.00014988,2]
[337467132,1725677481780,-897.13,0.00014988,2]
[337467133,1725677481790,-795.48,0.00014988,2]
[337467134,1725677481799,-500.0,0.00014988,2]
[337467135,1725677481809,-500.0,0.00014988,2]
[337467136,1725677481819,-877.77,0.00014988,2]
[337467137,1725677481828,-1462.3,0.00014988,2]
[337467138,1725677481838,-2200.19,0.00014988,2]
[337467139,1725677481848,-897.65,0.00014988,2]
[337467140,1725677481858,-670.34,0.00014988,2]
[337467141,1725677481867,-226.36,0.00014988,2]
[337467142,1725677481878,-618.34,0.00014988,2]
[337467143,1725677481887,-1460.66,0.00014988,2]
[337467144,1725677481897,-642.23,0.00014988,2]
[337467145,1725677481907,-500.0,0.00014988,2]
[337467146,1725677481917,-1110.96,0.00014988,2]
[337467147,1725677481926,-500.0,0.00014988,2]
[337467148,1725677481936,-518.92,0.00014988,2]
[337467149,1725677481946,-728.87512731,0.00014988,2]
[337467150,1725677481964,-815.7557091,0.00014988,2]
[337467151,1725677481975,-894.64916359,0.00014988,2]
[337467152,1725677481985,-390.03083641,0.00014988,2]
[337467153,1725677481997,-280.28916359,0.00014988,2]
[337467154,1725677482006,-218.06911928,0.00014988,2]
[337467155,1725677482017,-281.93088072,0.00014988,2]
[337467156,1725677482027,-301.51706189,0.00014988,2]
[337467157,1725677482038,-199.7774794,0.00014988,2]
[337467158,1725677482048,-500.0,0.00014988,2]
[337467159,1725677482057,-95.2225207,0.00014988,2]
[337467160,1725677482069,-920.7574793,0.00014988,2]
[337467161,1725677482078,-385.8744607,0.00014988,2]
[337467162,1725677482089,-114.1255393,0.00014988,2]
[337467163,1725677482099,-1650.28458561,0.00014988,2]
[337467164,1725677482110,-199.75541439,0.00014988,2]
[337467165,1725677482120,-370.80458556,0.00014988,2]
[337467166,1725677482131,-129.19541444,0.00014988,2]
[337467167,1725677482140,-246.16582466,0.00014988,2]
[337467168,1725677482225,1024.0,0.00031422,30]
[337467169,1725677482428,-205.99540945,0.00014694,2]
[337467170,1725677482445,-181.95252408,0.00014794,2]
[337467171,1725677482462,-254.25,0.00014794,2]
[337467172,1725677482485,-63.79747592,0.00014794,2]
[337467173,1725677482503,-552.19,0.00014794,2]
[337467174,1725677482523,-500.0,0.00014794,2]
[337467175,1725677482535,-109.94899938,0.00014794,2]
[337467176,1725677482553,-442.24100062,0.00014794,2]
[337467177,1725677482568,-500.0,0.00014794,2]
[337467178,1725677482584,-500.0,0.00014794,2]
[337467179,1725677482597,-106.1020754,0.00014794,2]
[337467180,1725677482617,-446.0879246,0.00014794,2]
[337467181,1725677482632,-348.89281177,0.00014794,2]
[337467182,1725677482650,-151.10718823,0.00014794,2]
[337467183,1725677482665,-226.52353245,0.00014794,2]
[337467184,1725677482682,-273.47646755,0.00014794,2]
[337467185,1725677482696,-375.54353245,0.00014794,2]
[337467186,1725677482713,-124.45646755,0.00014794,2]
[337467187,1725677482728,-500.0,0.00014794,2]
[337467188,1725677482743,-151.0,0.00014796,2]
[337467189,1725677482757,-552.19,0.00014796,2]
[337467190,1725677482772,-500.0,0.00014797,2]
[337467191,1725677482787,-500.0,0.00014987,2]
[337467192,1725677482801,-500.0,0.00014987,2]
[337467193,1725677482815,-552.19,0.00014987,2]
[337467194,1725677482830,-255.06813051,0.00014988,2]
[337467195,1725677482843,-500.0,0.00014988,2]
[337467196,1725677482857,-500.0,0.00014988,2]
[337467197,1725677482871,-426.69884196,0.00014988,2]
[337467198,1725677482884,-1139.03,0.00014988,2]
[337467199,1725677482898,-500.0,0.00014988,2]
[337467200,1725677482912,-500.0,0.00014988,2]
[337467201,1725677482925,-500.0,0.00014988,2]
[337467202,1725677482939,-1066.99,0.00014988,2]
[337467203,1725677482953,-838.85,0.00014988,2]
[337467204,1725677482969,-500.0,0.00014988,2]
[337467205,1725677482983,-666.23,0.00014988,2]
[337467206,1725677482998,-500.0,0.00014988,2]
[337467207,1725677483011,-973.13,0.00014988,2]
[337467208,1725677483026,-500.0,0.00014988,2]
[337467209,1725677483041,-523.32,0.00014988,2]
[337467210,1725677483056,-837.29,0.00014988,2]
[337467211,1725677483071,-324.79453298,0.00014988,2]
[337467212,1725677483080,-500.0,0.00014988,2]
[337467213,1725677483092,-500.0,0.00014988,2]
[337467214,1725677483103,-522.01,0.00014988,2]
[337467215,1725677483112,-501.15554634,0.00014988,2]
[337467216,1725677483122,-500.0,0.00014988,2]
[337467217,1725677483131,-422.83,0.00014988,2]
[337467218,1725677483141,-501.86765368,0.00014988,2]
[337467219,1725677483151,-855.57,0.00014988,2]
[337467220,1725677483160,-500.0,0.00014988,2]
[337467221,1725677483170,-512.84734925,0.00014988,2]
[337467222,1725677483179,-500.0,0.00014988,2]
[337467223,1725677483188,-500.0,0.00014988,2]
[337467224,1725677483198,-500.0,0.00014988,2]
[337467225,1725677483207,-500.0,0.00014988,2]
[337467226,1725677483217,-500.0,0.00014988,2]
[337467227,1725677483227,-501.03,0.00014988,2]
[337467228,1725677483236,-500.0,0.00014988,2]
[337467229,1725677483245,-151.0,0.00014988,2]
[337467230,1725677483255,-151.0,0.00014988,2]
[337467231,1725677483265,-500.0,0.00014988,2]
[337467232,1725677483276,-624.56,0.00014988,2]
[337467233,1725677483288,-958.54,0.00014988,2]
[337467234,1725677483298,-680.9,0.00014988,2]
[337467235,1725677483310,-357.97637695,0.00014988,2]
[337467236,1725677483320,-151.0,0.00014988,2]
[337467237,1725677483330,-500.0,0.00014988,2]
[337467238,1725677483342,-636.2,0.00014988,2]
[337467239,1725677483353,-889.78,0.00014988,2]
[337467240,1725677483363,-500.0,0.00014988,2]
[337467241,1725677483372,-582.54,0.00014988,2]
[337467242,1725677483382,-500.0,0.00014988,2]
[337467243,1725677483392,-500.0,0.00014988,2]
[337467244,1725677483402,-585.97,0.00014988,2]
[337467245,1725677483413,-500.0,0.00014988,2]
[337467246,1725677483423,-500.0,0.00014988,2]
[337467247,1725677483432,-500.0,0.00014988,2]
[337467248,1725677483442,-500.0,0.00014988,2]
[337467249,1725677483451,-500.0,0.00014988,2]
[337467250,1725677483461,-500.0,0.00014988,2]
[337467251,1725677483470,-500.0,0.00014988,2]
[337467252,1725677483479,-500.0,0.00014988,2]
[337467253,1725677483489,-500.0,0.00014988,2]
[337467254,1725677483499,-552.09,0.00014988,2]
[337467255,1725677483508,-151.0,0.00014988,2]
[337467256,1725677483518,-500.0,0.00014988,2]
[337467257,1725677483530,-12242.23455189,0.00014989,2]
[337467258,1725677483539,-52131.78545305,0.00014989,2]
[337467259,1725677483549,-151.0,0.00014989,2]
[337467260,1725677483558,-174.77952,0.00014989,2]
[337467261,1725677483568,-174.77953,0.00014989,2]
[337467262,1725677483578,-174.77952,0.00014989,2]
[337467263,1725677483588,-500.0,0.00014989,2]
[337467264,1725677483597,-517.99,0.00014989,2]
[337467265,1725677483607,-608.98,0.00014989,2]
[337467266,1725677483617,-1030.8,0.00014989,2]
[337467267,1725677483626,-830.02,0.00014989,2]
[337467268,1725677483636,-866.39,0.00014989,2]
[337467269,1725677483645,-593.78,0.00014989,2]
[337467270,1725677483656,-2016.4,0.00014989,2]
[337467271,1725677483666,-500.0,0.00014989,2]
[337467272,1725677483675,-1573.01,0.00014989,2]
[337467273,1725677483685,-1428.8676117,0.0001499,2]
[337467274,1725677483694,-1215.7309289,0.0001499,2]
[337467275,1725677483704,-1002.5942461,0.0001499,2]
[337467276,1725677483714,-789.4575633,0.0001499,2]
[337467277,1725677483724,-576.3208804,0.0001499,2]
[337467278,1725677483733,-1848.58031,0.0001499,2]
[337467279,1725677483743,-1575.9663981,0.0001499,2]
[337467280,1725677483752,-1303.3524861,0.0001499,2]
[337467281,1725677483761,-1030.7385741,0.0001499,2]
[337467282,1725677484236,-758.1246622,0.0001499,2]
[337467283,1725677484256,-151.0,0.0001499,2]
[337467284,1725677484273,-151.0,0.0001499,2]
[337467285,1725677484295,-5289.6749973,0.0001499,2]
[337467286,1725677484308,-4489.4681172,0.0001499,2]
[337467287,1725677484317,-3689.2612372,0.0001499,2]
[337467288,1725677484327,-1596.79656931,0.0001499,2]
[337467289,1725677484339,-1292.25778779,0.0001499,2]
[337467290,1725677484349,-2088.8474771,0.0001499,2]
[337467291,1725677484359,-151.0,0.0001499,2]
[337467292,1725677484368,-313.098597,0.0001499,2]
[337467293,1725677484378,-313.098597,0.0001499,2]
[337467294,1725677484388,-500.0,0.00014995,2]
[337467295,1725677484397,-915.04,0.00014995,2]
[337467296,1725677484410,-500.0,0.00014995,2]
[337467297,1725677484420,-588.65,0.00014995,2]
[337467298,1725677484429,-629.38,0.00014995,2]
[337467299,1725677484439,-500.0,0.00014995,2]
[337467300,1725677484449,-1043.47,0.00014995,2]
[337467301,1725677484459,-500.0,0.00014995,2]
[337467302,1725677484468,-651.02,0.00014995,2]
[337467303,1725677484479,-561.83,0.00014995,2]
[337467304,1725677484488,-552.27,0.00014995,2]
[337467305,1725677484498,-500.0,0.00014995,2]
[337467306,1725677484507,-500.0,0.00014995,2]
[337467307,1725677484517,-500.0,0.00014995,2]
[337467308,1725677484527,-2794.32,0.00014995,2]
[337467309,1725677484539,-1086.72,0.00014995,2]
[337467310,1725677484549,-752.86,0.00014995,2]
[337467311,1725677484559,-506.67,0.00014995,2]
[337467312,1725677484568,-500.0,0.00014995,2]
[337467313,1725677484578,-3259.37,0.00014995,2]
[337467314,1725677484587,-500.0,0.00014995,2]
[337467315,1725677484597,-1412.24098907,0.00014995,2]
[337467316,1725677484608,-440.88901093,0.00014995,2]
[337467317,1725677484618,-1815.57,0.00014995,2]
[337467318,1725677484627,-500.0,0.00014995,2]
[337467319,1725677484636,-698.93300993,0.00014995,2]
[337467320,1725677484647,-747.79699007,0.00014995,2]
[337467321,1725677484656,-500.0,0.00014995,2]
[337467322,1725677484666,-148.89346997,0.00014995,2]
[337467323,1725677484678,-1620.90671835,0.00014995,2]
[337467324,1725677484689,-717.27981168,0.00014995,2]
[337467325,1725677484698,-670.68997288,0.00014995,2]
[337467326,1725677484710,-25.51002712,0.00014995,2]
[337467327,1725677484721,-500.0,0.00014995,2]
[337467328,1725677484730,-571.68,0.00014995,2]
[337467329,1725677484740,-1510.00998067,0.00014995,2]
[337467330,1725677484752,-646.68362067,0.00014995,2]
[337467331,1725677484764,-283.58639866,0.00014995,2]
[337467332,1725677484773,-2107.09,0.00014995,2]
[337467333,1725677484786,-556.62,0.00014995,2]
[337467334,1725677484795,-401.252842,0.00014995,2]
[337467335,1725677484805,-401.252842,0.00014995,2]
[337467336,1725677484814,-739.5,0.00014995,2]
[337467337,1725677484824,-1260.76,0.00014995,2]
[337467338,1725677484833,-168.80817868,0.00014995,2]
[337467339,1725677484842,-500.0,0.00014995,2]
[337467340,1725677484851,-550.73,0.00014995,2]
[337467341,1725677484861,-4636.99,0.00014995,2]
[337467342,1725677484870,-500.0,0.00014995,2]
[337467343,1725677484880,-500.0,0.00014995,2]
[337467344,1725677484889,-3374.62,0.00014995,2]
[337467345,1725677484899,-500.0,0.00014995,2]
[337467346,1725677484909,-5020.13,0.00014995,2]
[337467347,1725677484918,-271.49866648,0.00014995,2]
[337467348,1725677484928,-500.0,0.00014995,2]
[337467349,1725677484937,-500.0,0.00014995,2]
[337467350,1725677484946,-597.83,0.00014995,2]
[337467351,1725677484955,-500.0,0.00014995,2]
[337467352,1725677484965,-500.0,0.00014995,2]
[337467353,1725677484974,-7172.41,0.00014995,2]
[337467354,1725677484983,-500.0,0.00014995,2]
[337467355,1725677484993,-500.0,0.00014995,2]
[337467356,1725677485002,-1137.17,0.00014995,2]
[337467357,1725677485012,-500.0,0.00014995,2]
[337467358,1725677485022,-1281.02,0.00014995,2]
[337467359,1725677485034,-500.0,0.00014995,2]
[337467360,1725677485044,-500.0,0.00014995,2]
[337467361,1725677485053,-500.0,0.00014995,2]
[337467362,1725677485063,-1106.53,0.00014995,2]
[337467363,1725677485072,-537.83,0.00014995,2]
[337467364,1725677485081,-500.0,0.00014995,2]
[337467365,1725677485091,-500.0,0.00014995,2]
[337467366,1725677485100,-500.0,0.00014995,2]
[337467367,1725677485110,-500.0,0.00014995,2]
[337467368,1725677485119,-500.0,0.00014995,2]
[337467369,1725677485128,-2437.6,0.00014995,2]
[337467370,1725677485138,-720.08,0.00014995,2]
[337467371,1725677485147,-170.63691154,0.00014995,2]
[337467372,1725677485156,-2595.16,0.00014995,2]
[337467373,1725677485165,-500.0,0.00014995,2]
[337467374,1725677485175,-598.22925167,0.00014995,2]
[337467375,1725677485184,-3199.88,0.00014995,2]
[337467376,1725677485193,-766.45,0.00014995,2]
[337467377,1725677485203,-500.0,0.00014995,2]
[337467378,1725677485212,-500.0,0.00014995,2]
[337467379,1725677485221,-617.69,0.00014995,2]
[337467380,1725677485231,-500.0,0.00014995,2]
[337467381,1725677485240,-500.0,0.00014995,2]
[337467382,1725677485249,-827.88,0.00014995,2]
[337467383,1725677485259,-500.0,0.00014995,2]
[337467384,1725677485268,-500.0,0.00014995,2]
[337467385,1725677485277,-900.56,0.00014996,2]